Cogmind - Beta 13 @@@ ROGUE MODE // 2024.05.24 @ 23:39:21 Player: Occam Result: Destroyed by as-41853 with Assembled F-torch Performance ------------- Evolutions (0) 0 Regions Visited (2) 400 Robots Destroyed (32) 160 Value Destroyed (337) 337 Prototype IDs (3) 60 Alien Tech Used (0) 0 Bonus (0) 0 TOTAL SCORE: 957 Bonus ------- None Cogmind --------- Core Integrity 0/250 Matter 283/300 Energy 98/100 System Corruption 0% Temperature Warm (126) Movement Treading (400) Ox3 Location -10/Mines Parts ------- > --- POWER (1) -------- (None) > --- PROPULSION (2) --- Improved Treads > --- UTILITY (2) ------ Huge Storage Unit Structural Scanner > --- WEAPON (2) ------- Medium Laser > --- INVENTORY (25) --- Improved Ion Engine Improved Treads Improved Treads Improved Treads Improved Treads Improved Treads Improved Treads Compact Wheel Heat Sink Huge Storage Unit High-capacity Matter Pod (200) Seismic Detector Light Armor Plating Shield Generator Shield Generator Medium Laser Assault Rifle Datajack Maul Peak State ------------ > --- POWER ------------ Improved Ion Engine > --- PROPULSION ------- Improved Treads Improved Treads > --- UTILITY ---------- Large Storage Unit Structural Scanner > --- WEAPON ----------- Small Laser Assault Rifle > --- INVENTORY -------- Improved Ion Engine Improved Treads Improved Treads Improved Treads Improved Treads Compact Wheel Heat Sink Small Storage Unit High-capacity Matter Pod Seismic Detector EM Pulse Gun Small Laser Light Assault Rifle Datajack Maul [Rating: 12] Favorites ----------- Power Improved Ion Engine Engine Improved Ion Engine Propulsion Improved Treads Treads Improved Treads Leg Aluminum Leg Wheel Compact Wheel Utility Structural Scanner Device Structural Scanner Storage Large Storage Unit Weapon Assault Rifle Energy Gun Small Laser Ballistic Gun Assault Rifle Ballistic Cannon Light Cannon Special Melee Weapon Datajack Build | -11 -10 -10 ------- Run | Yrd Mat Min Slots Evolved . | . . . Power . | . . . Propulsion . | . . . Utility . | . . . Weapon . | . . . Parts Attached 16 | 2 13 1 Power 1 | . 1 . Engine 1 | . 1 . Core . | . . . Reactor . | . . . Propulsion 6 | . 6 . Treads 5 | . 5 . Leg . | . . . Wheel 1 | . 1 . Hover . | . . . Flight . | . . . Utility 4 | 1 3 . Device 2 | 1 1 . Storage 2 | . 2 . Processor . | . . . Hackware . | . . . Protection . | . . . Artifact . | . . . Weapon 5 | 1 3 1 Energy Gun 2 | 1 1 . Energy Cannon . | . . . Ballistic Gun 1 | . 1 . Ballistic Cannon 1 | . . 1 Launcher . | . . . Special Weapon . | . . . Impact Weapon . | . . . Slashing Weapon . | . . . Piercing Weapon . | . . . Special Melee Weapon 1 | . 1 . Unidentified Prototypes . | . . . Parts Lost 4 | . 1 3 Power 1 | . . 1 Propulsion 2 | . 1 1 Utility . | . . . Weapon 1 | . . 1 Highest Loss Streak 3 | . 1 3 To Critical Strikes . | . . . Average Slot Usage (%) 99 | . 100 96 Engine 13 | . 14 12 Treads 20 | . 20 14 Leg 3 | . 3 . Wheel 3 | . 3 12 Device 14 | . 14 14 Storage 14 | . 14 14 Energy Gun 14 | . 14 14 Ballistic Gun 13 | . 13 10 Naked Turns . | . . . Heaviest Build 93 | 14 92 93 Greatest Support 46 | 20 46 16 Greatest Overweight (x) 5 | . 5 5 Average Overweight (x) 1 | . 1 5 Largest Inventory Capacity 25 | 8 25 25 Average Capacity 16 | 8 16 25 Most Carried 20 | 6 20 20 Average Carried 12 | 6 12 19 Final Capacity 25 | 8 25 25 Final Carried 20 | 6 20 19 Class Distribution -------------------- 100% | Mutant Dominant Class ---------------- Mutant | -10/Materials Mutant | -10/Mines Resources | -11 -10 -10 ----------- Run | Yrd Mat Min Matter Collected 818 | 250 553 15 Remotely . | . . . Salvage Created 905 | 103 766 36 Parts 68 | 2 62 4 Haulers Intercepted 2 | . 2 . Recyclers Shooed 9 | 1 8 . Parts Field Recycled . | . . . Retrieved Matter . | . . . Parts Self-Destructed . | . . . Prevented . | . . . Kills | -11 -10 -10 ------- Run | Yrd Mat Min Combat Hostiles Destroyed 13 | . 11 2 Guns 12 | . 11 1 Cannons 1 | . . 1 Classes Destroyed 11 | 2 8 1 Worker 6 | . 5 1 Builder 2 | . 2 . Tunneler 2 | 1 . 1 Hauler 2 | . 2 . Recycler 4 | 1 3 . Mechanic 1 | . 1 . Operator 1 | . 1 . Watcher 3 | . 3 . Swarmer 8 | . 8 . Grunt 3 | . 3 . Assembled 2 | . . 2 Best Kill Streak 6 | 1 6 2 Combat Bots Only 4 | . 4 2 Max Kills in Single Turn 5 | 1 5 1 Gunslinging . | . . . Exploded . | . . . Melee . | . . . Uniques/NPCs Destroyed . | . . . Combat | -11 -10 -10 -------- Run | Yrd Mat Min Hostile Shots Fired 74 | . 58 16 Missed 23 | . 21 2 Damage Taken 989 | . 516 473 Core 253 | . 179 74 Absorbed by Shields . | . . . Core Remaining (%) 100 | 100 . . Volleys Fired 100 | 10 77 13 Largest 2 | 2 2 2 Hottest 85 | 60 70 85 Shots Fired 197 | 20 154 23 Gun 193 | 20 154 19 Cannon 4 | . . 4 Launcher . | . . . Special . | . . . Kinetic 97 | 10 77 10 Thermal 100 | 10 77 13 Explosive . | . . . Electromagnetic . | . . . Robot Hit Streak 10 | 5 10 7 Robot Miss Streak 4 | 1 4 3 Penetration Max . | . . . Secondary Targets 2 | . 2 . Max Gunslinging Chain 1 | . 1 . Shots Hit Robots 117 | 15 87 15 Core Hits 50 | 3 38 9 Critical Kills . | . . . Critical Parts Destroyed 1 | . 1 . Critical Strikes 4 | . 2 2 Burn 2 | . 1 1 Destroy 1 | . 1 . Blast 1 | . . 1 Melee Attacks . | . . . Impact . | . . . Slashing . | . . . Piercing . | . . . Sneak Attacks . | . . . Combat Hostiles . | . . . Follow-up Attacks . | . . . Damage Inflicted 1830 | 170 1449 211 Guns 1414 | 170 1084 160 Cannons 51 | . . 51 Explosions 365 | . 365 . Melee . | . . . Ramming . | . . . Kinetic 673 | 63 525 85 Thermal 792 | 107 559 126 Explosive 365 | . 365 . Electromagnetic . | . . . Impact . | . . . Slashing . | . . . Piercing . | . . . Highest Corruption . | . . . Average Corruption . | . . . Corruption Purged . | . . . Corruption Blocked . | . . . Overload Shots . | . . . Overflow Damage 66 | . 66 . Projectiles . | . . . Explosions 66 | . 66 . Melee . | . . . Knockbacks 2 | . . 2 Impact . | . . . Kinetic 2 | . . 2 Secondary . | . . . Self-Inflicted Damage 186 | . 186 . Shots 2 | . 2 . Rammed . | . . . Targets Rammed . | . . . Kicked . | . . . Crushed . | . . . Highest Temperature 106 | . 48 106 Average Temperature 22 | . 17 31 Received Heat Transfer 158 | . 78 80 Siege Activations . | . . . Robots Corrupted . | . . . Combat Hostiles . | . . . Parts Fried . | . . . Impact Corruptions . | . . . Robots Melted . | . . . Combat Hostiles . | . . . Parts Melted . | . . . Heat Transferred 2065 | 250 1371 444 Parts Sabotaged . | . . . Parts Stolen . | . . . Parts Stripped . | . . . Power Chain Reactions . | . . . Alert | -11 -10 -10 ------- Run | Yrd Mat Min Peak Influence 382 | 10 382 18 Initial 8 | . 6 8 Average 143 | 6 155 11 Maximum Alert Level 1 | . 1 . Low Security (%) 70 | 100 67 100 Level 1 29 | . 32 . Level 2 . | . . . Level 3 . | . . . Level 4 . | . . . Level 5 . | . . . High Security . | . . . Max Security . | . . . Squads Dispatched 2 | . 2 . Investigation 1 | . 1 . Extermination . | . . . Reinforcement 1 | . 1 . Assault . | . . . Garrison . | . . . Intercept . | . . . Searches Triggered . | . . . Construction Impeded . | . . . Haulers Reinforced . | . . . Active Scanning Responses . | . . . Cargo Convoy Interrupts . | . . . Stealth | -11 -10 -10 --------- Run | Yrd Mat Min Distress Signals 3 | . 3 . Communications Jammed . | . . . Distress Signals . | . . . Times Spotted 43 | . 25 18 Peak Tracking Total 12 | . 8 12 Tactical Retreats 2 | . 2 . Traps | -11 -10 -10 ------- Run | Yrd Mat Min Traps Triggered . | . . . Indirectly . | . . . Trap Hack Attempts 36 | . 36 . Triggered . | . . . Disarmed . | . . . Reprogrammed 2 | . 2 . Reused . | . . . Traps Extracted . | . . . Installed . | . . . Triggered . | . . . Machines | -11 -10 -10 ---------- Run | Yrd Mat Min Machines Disabled 2 | . 2 . Max in Single Turn 2 | . 2 . Machines Repaired . | . . . Machines Dismantled . | . . . Machines Sabotaged . | . . . Overloaded Fab Kills . | . . . Hacking | -11 -10 -10 --------- Run | Yrd Mat Min Machines Accessed 9 | . 9 . Terminals 7 | . 7 . Fabricators . | . . . Repair Stations . | . . . Recycling Units 2 | . 2 . Scanalyzers . | . . . Garrison Access . | . . . Total Hacks 28 | . 28 . Successful 16 | . 16 . Failed 12 | . 12 . Catastrophic 2 | . 2 . Database Lockouts . | . . . Manual 19 | . 19 . Terminals 25 | . 25 . Fabricators . | . . . Repair Stations . | . . . Recycling Units 3 | . 3 . Scanalyzers . | . . . Garrison Access . | . . . Terminal Hacks 10 | . 10 . Part Schematic 1 | . 1 . Robot Schematic 2 | . 2 . Robot Analysis 3 | . 3 . Prototype ID Bank 1 | . 1 . Terminal Index 1 | . 1 . Alert Level 1 | . 1 . Locate Traps 1 | . 1 . Fabricator Hacks . | . . . Repair Station Hacks . | . . . Recycling Unit Hacks 3 | . 3 . Report Inventory 2 | . 2 . Retrieve Components 1 | . 1 . Scanalyzer . | . . . Garrison Access Hacks . | . . . Unauthorized Hacks 3 | . 3 . Terminals 3 | . 3 . Botnet 2 | . 2 . Operators 1 | . 1 . Fabricators . | . . . Repair Stations . | . . . Recycling Units . | . . . Scanalyzers . | . . . Garrison Access . | . . . Data Cores Recovered . | . . . Used . | . . . Hacking Detections 8 | . 8 . Full Trace Events 2 | . 2 . Feedback Events . | . . . Feedback Blocked . | . . . Robot Schematics Acquired 2 | . 2 . Robots Built . | . . . Authchips . | . . . Time . | . . . Total Robot Build Rating . | . . . Part Schematics Acquired 1 | . 1 . Parts Built . | . . . Authchips . | . . . Time . | . . . Total Part Build Rating . | . . . Parts Repaired . | . . . Time . | . . . Parts Recycled . | . . . Recycled Matter . | . . . Retrieved Matter . | . . . Retrieved Components 1 | . 1 . Parts Scanalyzed . | . . . Part Schematics Acquired . | . . . Parts Damaged . | . . . Bothacking | -11 -10 -10 ------------ Run | Yrd Mat Min Used RIF Installer . | . . . Robots Hacked . | . . . Non-combat . | . . . Combat . | . . . Robot Hacks Applied . | . . . Relay Couplers Released . | . . . Fabnet Peak Effective % . | . . . Robots Rewired . | . . . Allies Hacked . | . . . Hacks Repelled . | . . . Allies | -11 -10 -10 -------- Run | Yrd Mat Min Total Allies . | . . . Largest Group . | . . . Highest-Rated Group . | . . . Highest-Rated Ally . | . . . Total Orders . | . . . Ally Attacks . | . . . Total Damage . | . . . Kills . | . . . Allies Corrupted . | . . . Allies Melted . | . . . Intel | -11 -10 -10 ------- Run | Yrd Mat Min Robot Analysis Total 3 | . 3 . Derelict Logs Recovered . | . . . Drone Launches . | . . . Drone Recoveries . | . . . Exploration | -11 -10 -10 ------------- Run | Yrd Mat Min Turns Passed 2070 | 46 1901 123 Spaces Moved 1042 | 11 982 49 Core . | . . . Treads 643 | . 643 . Legs 108 | 11 97 . Wheels 291 | . 242 49 Hover . | . . . Flight . | . . . Fastest Speed 120 | 120 120 175 Average Speed 160 | 120 159 175 Slowest Speed 175 | 120 175 175 Overloaded Moves . | . . . Propulsion Burnouts . | . . . Robots Hopped . | . . . Cave-ins Triggered . | . . . Exploration Rate (%) 38 | 2 99 13 Regions Visited 2 Branch Regions 1 Pre-discovered Areas . | . . . Known Exits Taken . | . . . Unknown Exits Taken 2 | 1 1 . Scrap Searched . | . . . Spaces Dug . | . . . Terrain Destroyed 21 | . 21 . Melee . | . . . Projectile . | . . . AOE 21 | . 21 . Terrain Rammed . | . . . Walls Destroyed . | . . . Machines Disabled . | . . . Actions | -11 -10 -10 --------- Run | Yrd Mat Min Total 1253 | 22 1168 63 Wait 24 | . 24 . Move 1040 | 10 981 49 Hop . | . . . Pick Up 22 | . 22 . Fast Attach 2 | 1 1 . Attach 4 | . 3 1 Detach 1 | . 1 . Swap 10 | 1 9 . Drop 14 | . 14 . Fire 100 | 10 77 13 Melee . | . . . Ram . | . . . Kick . | . . . Crush . | . . . Escape Stasis . | . . . Rewire . | . . . Trap 36 | . 36 . Miscellaneous . | . . . Route ------- -11/Scrapyard -10/Materials (discovered 6 exits: [*Mat x3] / [*Min x2] / [Sub]) -10/Mines History --------- Turn | Location | Event 9 | -11/Scrapyard | Discovered new exit (range 3) 47 | -11/Scrapyard | Entered Materials 304 | -10/Materials | Core integrity fell below 50% 343 | -10/Materials | Build established: Mutant 520 | -10/Materials | Discovered new exit (range 16) 745 | -10/Materials | Discovered new exit (range 14) 1110 | -10/Materials | Discovered new exit (range 8) 1521 | -10/Materials | Discovered new exit (range 12) 1620 | -10/Materials | Discovered new exit (range 15) 1725 | -10/Materials | Discovered new exit (range 4) 1948 | -10/Materials | Entered Mines 2024 | -10/Mines | Assembled infested the area 2051 | -10/Mines | Core integrity fell below 20% 2071 | -10/Mines | Destroyed by as-41853 with Assembled F-torch Last Messages --------------- 02046_ D-53 Grenadier knocked back. 02048_ The unstable cave ceiling collapses. 02050_ as-93315 destroyed. 02050_ as-57700 destroyed. 02052_ as-80752 destroyed. 02052_ as-44500 destroyed. 02055_ as-30891 destroyed. 02055_ as-08574 destroyed. 02055_ as-70597 destroyed. 02056_ D-53 Grenadier knocked back. 02056_ D-53 Grenadier destroyed. 02057_ The unstable cave ceiling collapses. 02061_ as-71021 destroyed. 02061_ U-05 Engineer lays Concrete. 02062_ The unstable cave ceiling collapses. 02062_ 4 Matter crushed. 02064_ as-20901 destroyed. 02066_ Lgt. Cannon severed. 02068_ Com. Wheel destroyed. 02069_ Imp. Ion Engine destroyed. Map ----- +----------------------------------------------------+ | ?????????????????????????????????????????????????? | | ?????????????????????????????????????????????????? | | ?????????????????????????????????????????????????? | | ?????????????????????????????????????????????????? | | ?????????????????????????????????????????????????? | | ?????????????????????????????????????????????????? | | ?????????????????? ??????????????????????????????? | | ????????????????? ###???????????????????????????? | | ??????????????## ## ???????????????????????????? | | ??????????????## # ???????????????????????????? | | ??????????????# ???????????????????????????? | | ???????????????? #??????????????????????????? | | ????????????????? ##?#####????????????????????? | | ????????????????? #########???????????????????? | | ?????????????????## #### ###???????????????????? | | ????????????????### ##???????????????????? | | ????????????????### ##???????????????????? | | ???????????????### ??????????????????????? | | ???????????????### ##??????????????????????? | | ???????????????## ###########??????????????? | | ??????###??????## #############????????????? | | ??????####?????### % $##????????????? | | ??????## ######?### ##%##### ????????? | | ??????### ######### ## ######?????????????????? | | ???????## ##### ## ####???????????????????? | | ???????##### ### ###@######?????????????????? | | ???????##### # #aa #####????????????????? | | ??????????##### %*# ###????????????????? | | ??????????#### # # ##????????????????? | | ???????????## #### ###????????????????? | | ???????????######### ###????????????????? | | ???????????######### ##?????????????????? | | ??????????????????### a % ##?????????????????? | | ??????????????????## ##?????????????????? | | ??????????????????### a ###?????????????????? | | ??????????????????### % ####?????????????????? | | ???????????????????###### #####??????????????????? | | ???????????????????######a###????????????????????? | | ???????????????????????## ##?????????????????????? | | ???????????????????????## ?????????????????????? | | ???????????????????????#### ?????????????????????? | | ???????????????????????#### ?????????????????????? | | ?????????????????????????????????????????????????? | | ?????????????????????????????????????????????????? | | ?????????????????????????????????????????????????? | | ?????????????????????????????????????????????????? | | ?????????????????????????????????????????????????? | | ?????????????????????????????????????????????????? | | ?????????????????????????????????????????????????? | | ?????????????????????????????????????????????????? | +----------------------------------------------------+ Best States ------------- Heat Dissipation 25 Energy Generation 12 Energy Capacity 265 Matter Stores 300 Matter Capacity 300 Sight Range 16 Terrain Scan Density 10 Evasion (%) 55 Recoil Reduction 2 Item Schematics ----------------- Huge Storage Unit | -10/Materials | Hacked Robot Schematics ------------------ M-13 Machinist | -10/Materials | Hacked O-16 Technician | -10/Materials | Hacked Fabricated ------------ Nothing Alien Tech Used ----------------- None Achievements -------------- None Challenges ------------ None Game ------ Seed SpliceShadingDetector Manual? 0 Play Time 00:15:04 Cumulative 329.8 hours Start 2024.05.24 @ 23:23:01 End 2024.05.24 @ 23:39:21 Sessions 1 Manual Loads 0 Difficulty Rogue Special Mode None Game No. 201 Rogue 57 Adventurer 144 Explorer 0 Win Type - Total 4 Types 2/0/1/1/0/0/0/0/0 Lore% 66 Gallery% 78 Achievement% 64 Wizard Run 0 Options --------- Layout 0 ASCII 0 Keyboard 0 Movement Mouse Keybinds 0 Fullscreen 2 Font 20/SmallcapsGlow Map View 66x50 Zoom Use 0% Tactical HUD 1 Map Filters NONE Filters NONE Steam X RUN: 42d24dbc-3a0b-4552-b317-cfa00a412d3d